[Event "Titled Tuesday Blitz February 15 Early 2022"]
[White "Shyaamnikhil P"]
[Black "Hakobyan, Aram"]
[WhiteFideId "5024218"]
[BlackFideId "13306677"]
[WhiteElo "2292"]
[BlackElo "2557"]
[Result "0-1"]
[Round "07"]
[TimeControl "180+1"]
[Date "2022.02.15"]
[WhiteClock "0:00:12"]
[BlackClock "0:00:23"]

1. d4 {[%clk 0:02:55]}  f5 {[%clk 0:02:58]} 2. Nc3 {[%clk 0:02:50]}  d5 {[%clk 0:02:57]} 3. Bg5 {[%clk 0:02:45]}  c6 {[%clk 0:02:57]} 4. e3 {[%clk 0:02:43]}  g6 {[%clk 0:02:56]} 5. h4 {[%clk 0:02:42]}  Nh6 {[%clk 0:02:55]} 6. Nf3 {[%clk 0:02:41]}  Nf7 {[%clk 0:02:55]} 7. h5 {[%clk 0:02:37]}  Nxg5 {[%clk 0:02:47]} 8. Nxg5 {[%clk 0:02:37]}  Bg7 {[%clk 0:02:42]} 9. hxg6 {[%clk 0:02:35]}  hxg6 {[%clk 0:02:43]} 10. Rxh8+ {[%clk 0:02:34]}  Bxh8 {[%clk 0:02:44]} 11. f4 {[%clk 0:02:30]}  Qb6 {[%clk 0:02:37]} 12. Qd2 {[%clk 0:02:03]}  Qxb2 {[%clk 0:02:31]} 13. Rb1 {[%clk 0:02:02]}  Qa3 {[%clk 0:02:31]} 14. Bd3 {[%clk 0:02:01]}  Nd7 {[%clk 0:02:23]} 15. g4 {[%clk 0:01:53]}  Nb6 {[%clk 0:02:18]} 16. Rb3 {[%clk 0:01:51]}  Qd6 {[%clk 0:02:14]} 17. Qh2 {[%clk 0:01:39]}  Bf6 {[%clk 0:02:00]} 18. Nf3 {[%clk 0:01:29]}  Be6 {[%clk 0:01:52]} 19. g5 {[%clk 0:01:27]}  Bg7 {[%clk 0:01:31]} 20. Qh7 {[%clk 0:01:26]}  Kf8 {[%clk 0:01:28]} 21. Ne5 {[%clk 0:01:19]}  Bf7 {[%clk 0:01:26]} 22. Kf2 {[%clk 0:01:01]}  Rb8 {[%clk 0:01:20]} 23. Rb1 {[%clk 0:00:59]}  Nd7 {[%clk 0:01:20]} 24. Rh1 {[%clk 0:00:52]}  Nxe5 {[%clk 0:01:17]} 25. fxe5 {[%clk 0:00:52]}  Qd8 {[%clk 0:00:53]} 26. Ne2 {[%clk 0:00:47]}  e6 {[%clk 0:00:53]} 27. Rg1 {[%clk 0:00:45]}  c5 {[%clk 0:00:48]} 28. Nf4 {[%clk 0:00:42]}  cxd4 {[%clk 0:00:46]} 29. Nxg6+ {[%clk 0:00:31]}  Bxg6 {[%clk 0:00:46]} 30. Qxg6 {[%clk 0:00:32]}  dxe3+ {[%clk 0:00:46]} 31. Kf3 {[%clk 0:00:32]}  Qe8 {[%clk 0:00:44]} 32. Qh7 {[%clk 0:00:23]}  d4 {[%clk 0:00:43]} 33. g6 {[%clk 0:00:16]}  Rc8 {[%clk 0:00:32]} 34. Rb1 {[%clk 0:00:14]}  Rxc2 {[%clk 0:00:31]} 35. Bxc2 {[%clk 0:00:12]}  Qc6+ {[%clk 0:00:32]} 36. Kf4 {[%clk 0:00:12]}  Qxc2 {[%clk 0:00:32]} 37. Qh1 {[%clk 0:00:12]}  Qf2+ {[%clk 0:00:25]} 38. Kg5 {[%clk 0:00:12]}  Qg3+ {[%clk 0:00:23]} 0-1


[Site "https://www.chess.com"]

[Event "Titled Tuesday Blitz February 15 Early 2022"]
[White "Sovetbekova, Nurai"]
[Black "Vifleemskaia, Svetlana"]
[WhiteFideId "13801910"]
[BlackFideId "4129490"]
[WhiteElo "1545"]
[BlackElo "1901"]
[Result "1-0"]
[Round "07"]
[TimeControl "180+1"]
[Date "2022.02.15"]
[WhiteClock "0:00:40"]
[BlackClock "0:01:40"]

1. d4 {[%clk 0:03:00]}  Nf6 {[%clk 0:02:59]} 2. c4 {[%clk 0:03:00]}  e6 {[%clk 0:02:59]} 3. g3 {[%clk 0:02:58]}  Bb4+ {[%clk 0:02:58]} 4. Bd2 {[%clk 0:02:58]}  Qe7 {[%clk 0:02:58]} 5. Bg2 {[%clk 0:02:55]}  Nc6 {[%clk 0:02:58]} 6. Nf3 {[%clk 0:02:55]}  O-O {[%clk 0:02:57]} 7. O-O {[%clk 0:02:55]}  Bxd2 {[%clk 0:02:55]} 8. Qxd2 {[%clk 0:02:51]}  e5 {[%clk 0:02:51]} 9. d5 {[%clk 0:02:26]}  e4 {[%clk 0:02:42]} 10. dxc6 {[%clk 0:02:14]}  exf3 {[%clk 0:02:39]} 11. cxb7 {[%clk 0:02:01]}  Bxb7 {[%clk 0:02:36]} 12. Bxf3 {[%clk 0:02:01]}  Bxf3 {[%clk 0:02:33]} 13. exf3 {[%clk 0:02:02]}  Qc5 {[%clk 0:02:21]} 14. b3 {[%clk 0:01:54]}  d6 {[%clk 0:02:19]} 15. Nc3 {[%clk 0:01:52]}  h6 {[%clk 0:02:19]} 16. Ne4 {[%clk 0:01:42]}  Qf5 {[%clk 0:02:14]} 17. Nxf6+ {[%clk 0:01:37]}  Qxf6 {[%clk 0:02:15]} 18. Kg2 {[%clk 0:01:37]}  a5 {[%clk 0:02:12]} 19. Rac1 {[%clk 0:01:27]}  a4 {[%clk 0:02:11]} 20. b4 {[%clk 0:01:23]}  a3 {[%clk 0:02:11]} 21. c5 {[%clk 0:01:18]}  Ra4 {[%clk 0:01:51]} 22. b5 {[%clk 0:01:05]}  Qb2 {[%clk 0:01:47]} 23. Rc2 {[%clk 0:00:59]}  Qxb5 {[%clk 0:01:46]} 24. cxd6 {[%clk 0:00:59]}  cxd6 {[%clk 0:01:43]} 25. Qxd6 {[%clk 0:00:57]}  Rc4 {[%clk 0:01:43]} 26. Rfc1 {[%clk 0:00:54]}  Rfc8 {[%clk 0:01:42]} 27. Rxc4 {[%clk 0:00:40]}  Rxc4 {[%clk 0:01:41]} 28. Qd8+ {[%clk 0:00:40]}  Kh7 {[%clk 0:01:40]} 29. Qd3+ {[%clk 0:00:40]} 1-0


[Site "https://www.chess.com"]

[Event "Titled Tuesday Blitz February 15 Early 2022"]
[White "Stanisz, Patryk"]
[Black "Bettalli, Francesco"]
[WhiteFideId "1123106"]
[BlackFideId "2816453"]
[WhiteElo "1876"]
[BlackElo "2216"]
[Result "0-1"]
[Round "07"]
[TimeControl "180+1"]
[Date "2022.02.15"]
[WhiteClock "0:00:02"]
[BlackClock "0:01:16"]

1. Nf3 {[%clk 0:03:00]}  c5 {[%clk 0:02:59]} 2. b3 {[%clk 0:02:58]}  d6 {[%clk 0:02:58]} 3. Bb2 {[%clk 0:02:58]}  e5 {[%clk 0:02:58]} 4. d3 {[%clk 0:02:56]}  g6 {[%clk 0:02:58]} 5. g3 {[%clk 0:02:55]}  Bg7 {[%clk 0:02:58]} 6. Bg2 {[%clk 0:02:56]}  Ne7 {[%clk 0:02:58]} 7. O-O {[%clk 0:02:56]}  O-O {[%clk 0:02:58]} 8. Nbd2 {[%clk 0:02:57]}  f5 {[%clk 0:02:59]} 9. c4 {[%clk 0:02:47]}  Nbc6 {[%clk 0:02:56]} 10. e3 {[%clk 0:02:46]}  a6 {[%clk 0:02:51]} 11. Qe2 {[%clk 0:02:40]}  b5 {[%clk 0:02:44]} 12. Rad1 {[%clk 0:02:36]}  Bb7 {[%clk 0:02:42]} 13. Nb1 {[%clk 0:02:32]}  b4 {[%clk 0:02:41]} 14. h4 {[%clk 0:02:15]}  a5 {[%clk 0:02:37]} 15. d4 {[%clk 0:02:09]}  cxd4 {[%clk 0:02:36]} 16. exd4 {[%clk 0:02:10]}  e4 {[%clk 0:02:37]} 17. Ng5 {[%clk 0:02:10]}  Qd7 {[%clk 0:02:37]} 18. d5 {[%clk 0:02:09]}  Ne5 {[%clk 0:02:36]} 19. Ne6 {[%clk 0:02:09]}  Rfe8 {[%clk 0:02:18]} 20. Nxg7 {[%clk 0:02:07]}  Kxg7 {[%clk 0:02:19]} 21. f4 {[%clk 0:01:51]}  exf3 {[%clk 0:02:18]} 22. Bxf3 {[%clk 0:01:32]}  Ng8 {[%clk 0:02:17]} 23. c5 {[%clk 0:01:18]}  Ba6 {[%clk 0:02:15]} 24. Qf2 {[%clk 0:00:53]}  Bxf1 {[%clk 0:02:10]} 25. Qxf1 {[%clk 0:00:54]}  Nf6 {[%clk 0:02:08]} 26. c6 {[%clk 0:00:50]}  Qa7+ {[%clk 0:02:08]} 27. Bd4 {[%clk 0:00:50]}  Qa6 {[%clk 0:02:07]} 28. Be2 {[%clk 0:00:44]}  Qc8 {[%clk 0:02:04]} 29. Bc4 {[%clk 0:00:35]}  Ne4 {[%clk 0:01:55]} 30. Qf4 {[%clk 0:00:29]}  Kg8 {[%clk 0:01:44]} 31. Nd2 {[%clk 0:00:25]}  Nxd2 {[%clk 0:01:41]} 32. Rxd2 {[%clk 0:00:25]}  Nxc4 {[%clk 0:01:41]} 33. bxc4 {[%clk 0:00:24]}  a4 {[%clk 0:01:40]} 34. Qg5 {[%clk 0:00:17]}  Qd8 {[%clk 0:01:32]} 35. Qh6 {[%clk 0:00:14]}  Qe7 {[%clk 0:01:30]} 36. h5 {[%clk 0:00:08]}  Qe1+ {[%clk 0:01:28]} 37. Kg2 {[%clk 0:00:08]}  Re2+ {[%clk 0:01:27]} 38. Rxe2 {[%clk 0:00:08]}  Qxe2+ {[%clk 0:01:28]} 39. Kg1 {[%clk 0:00:08]}  Qd1+ {[%clk 0:01:27]} 40. Kg2 {[%clk 0:00:08]}  Qxd4 {[%clk 0:01:27]} 41. hxg6 {[%clk 0:00:04]}  Qg7 {[%clk 0:01:24]} 42. gxh7+ {[%clk 0:00:04]}  Kh8 {[%clk 0:01:23]} 43. Qxd6 {[%clk 0:00:03]}  b3 {[%clk 0:01:21]} 44. c7 {[%clk 0:00:03]}  bxa2 {[%clk 0:01:17]} 45. Qd8+ {[%clk 0:00:03]}  Qf8 {[%clk 0:01:17]} 46. c8=Q {[%clk 0:00:02]}  Rxc8 {[%clk 0:01:16]} 0-1


[Site "https://www.chess.com"]

[Event "Titled Tuesday Blitz February 15 Early 2022"]
[White "Ter-Sahakyan, Samvel"]
[Black "Urbina Perez, Juan Antonio"]
[WhiteFideId "13302531"]
[BlackFideId "2217368"]
[WhiteElo "2727"]
[BlackElo "2527"]
[Result "1-0"]
[Round "07"]
[TimeControl "180+1"]
[Date "2022.02.15"]
[WhiteClock "0:01:13"]
[BlackClock "0:01:22"]

1. d4 {[%clk 0:02:59]}  d5 {[%clk 0:02:53]} 2. Nf3 {[%clk 0:02:57]}  Nf6 {[%clk 0:02:52]} 3. c3 {[%clk 0:02:57]}  c6 {[%clk 0:02:51]} 4. Qc2 {[%clk 0:02:55]}  g6 {[%clk 0:02:50]} 5. Bf4 {[%clk 0:02:52]}  Bf5 {[%clk 0:02:50]} 6. Qb3 {[%clk 0:02:52]}  Qb6 {[%clk 0:02:50]} 7. e3 {[%clk 0:02:50]}  h5 {[%clk 0:02:45]} 8. h3 {[%clk 0:02:48]}  Nbd7 {[%clk 0:02:44]} 9. c4 {[%clk 0:02:43]}  dxc4 {[%clk 0:02:40]} 10. Bxc4 {[%clk 0:02:41]}  Qxb3 {[%clk 0:02:38]} 11. Bxb3 {[%clk 0:02:40]}  Bg7 {[%clk 0:02:32]} 12. Nc3 {[%clk 0:02:38]}  Ne4 {[%clk 0:02:25]} 13. Nxe4 {[%clk 0:02:36]}  Bxe4 {[%clk 0:02:26]} 14. Bxf7+ {[%clk 0:02:35]}  Kxf7 {[%clk 0:02:23]} 15. Ng5+ {[%clk 0:02:35]}  Ke8 {[%clk 0:02:12]} 16. Nxe4 {[%clk 0:02:35]}  Nf6 {[%clk 0:02:12]} 17. Nc5 {[%clk 0:02:29]}  b6 {[%clk 0:02:09]} 18. Ne6 {[%clk 0:02:23]}  Kf7 {[%clk 0:02:09]} 19. Nxg7 {[%clk 0:02:23]}  Kxg7 {[%clk 0:02:10]} 20. Rc1 {[%clk 0:02:21]}  Rac8 {[%clk 0:02:10]} 21. Ke2 {[%clk 0:02:21]}  Kf7 {[%clk 0:02:10]} 22. Rc2 {[%clk 0:02:15]}  Nd7 {[%clk 0:02:04]} 23. Rhc1 {[%clk 0:02:11]}  c5 {[%clk 0:02:04]} 24. b4 {[%clk 0:02:10]}  Rc6 {[%clk 0:01:59]} 25. dxc5 {[%clk 0:01:51]}  bxc5 {[%clk 0:02:00]} 26. bxc5 {[%clk 0:01:51]}  Rhc8 {[%clk 0:01:58]} 27. e4 {[%clk 0:01:51]}  Rxc5 {[%clk 0:01:52]} 28. Rxc5 {[%clk 0:01:50]}  Rxc5 {[%clk 0:01:53]} 29. Rxc5 {[%clk 0:01:49]}  Nxc5 {[%clk 0:01:54]} 30. Be3 {[%clk 0:01:45]}  Nxe4 {[%clk 0:01:54]} 31. Kd3 {[%clk 0:01:42]}  Nd6 {[%clk 0:01:46]} 32. Bxa7 {[%clk 0:01:41]}  e5 {[%clk 0:01:46]} 33. Bb8 {[%clk 0:01:38]}  Nb7 {[%clk 0:01:37]} 34. Bxe5 {[%clk 0:01:35]}  Ke6 {[%clk 0:01:37]} 35. Bd4 {[%clk 0:01:33]}  Kd5 {[%clk 0:01:36]} 36. a4 {[%clk 0:01:30]}  Nd6 {[%clk 0:01:36]} 37. a5 {[%clk 0:01:27]}  Nf5 {[%clk 0:01:31]} 38. a6 {[%clk 0:01:23]}  Kc6 {[%clk 0:01:31]} 39. Ke4 {[%clk 0:01:19]}  Nh4 {[%clk 0:01:31]} 40. g4 {[%clk 0:01:17]}  hxg4 {[%clk 0:01:31]} 41. hxg4 {[%clk 0:01:17]}  Ng2 {[%clk 0:01:29]} 42. f4 {[%clk 0:01:15]}  Nh4 {[%clk 0:01:23]} 43. Bf2 {[%clk 0:01:12]}  Ng2 {[%clk 0:01:22]} 44. Kf3 {[%clk 0:01:13]} 1-0


[Site "https://www.chess.com"]

[Event "Titled Tuesday Blitz February 15 Early 2022"]
[White "Todorovic, Bojan"]
[Black "Wartiovaara, Oliver"]
[WhiteFideId "917087"]
[BlackFideId "513024"]
[WhiteElo "2266"]
[BlackElo "1971"]
[Result "0-1"]
[Round "07"]
[TimeControl "180+1"]
[Date "2022.02.15"]
[WhiteClock "0:00:19"]
[BlackClock "0:00:19"]

1. Nf3 {[%clk 0:02:59]}  Nf6 {[%clk 0:01:52]} 2. c4 {[%clk 0:02:57]}  g6 {[%clk 0:01:51]} 3. Nc3 {[%clk 0:02:56]}  d5 {[%clk 0:01:49]} 4. cxd5 {[%clk 0:02:55]}  Nxd5 {[%clk 0:01:50]} 5. Qa4+ {[%clk 0:02:47]}  Nc6 {[%clk 0:01:45]} 6. Ne5 {[%clk 0:02:28]}  Qd6 {[%clk 0:01:42]} 7. Nxc6 {[%clk 0:02:10]}  Qxc6 {[%clk 0:01:41]} 8. Qd4 {[%clk 0:02:02]}  Nxc3 {[%clk 0:01:39]} 9. Qxh8 {[%clk 0:01:56]}  Nxa2 {[%clk 0:01:39]} 10. h4 {[%clk 0:01:17]}  Nxc1 {[%clk 0:01:36]} 11. h5 {[%clk 0:01:06]}  Nb3 {[%clk 0:01:31]} 12. Rd1 {[%clk 0:01:05]}  Be6 {[%clk 0:01:07]} 13. h6 {[%clk 0:00:54]}  O-O-O {[%clk 0:00:38]} 14. Qc3 {[%clk 0:00:47]}  Bd5 {[%clk 0:00:30]} 15. Rh4 {[%clk 0:00:44]}  e5 {[%clk 0:00:27]} 16. g3 {[%clk 0:00:38]}  e4 {[%clk 0:00:23]} 17. Bg2 {[%clk 0:00:25]}  f5 {[%clk 0:00:23]} 18. Kf1 {[%clk 0:00:24]}  Be7 {[%clk 0:00:21]} 19. Rh2 {[%clk 0:00:21]}  Bf6 {[%clk 0:00:20]} 20. Qc2 {[%clk 0:00:19]}  Qxc2 {[%clk 0:00:19]} 0-1


[Site "https://www.chess.com"]

[Event "Titled Tuesday Blitz February 15 Early 2022"]
[White "Tsydypov, Zhamsaran"]
[Black "Kucuksari, Kaan"]
[WhiteFideId "4108566"]
[BlackFideId "6380166"]
[WhiteElo "2614"]
[BlackElo "2305"]
[Result "0-1"]
[Round "07"]
[TimeControl "180+1"]
[Date "2022.02.15"]
[WhiteClock "0:01:33"]
[BlackClock "0:00:19"]

1. d4 {[%clk 0:03:00]}  Nf6 {[%clk 0:02:59]} 2. c4 {[%clk 0:03:00]}  c6 {[%clk 0:02:56]} 3. Nc3 {[%clk 0:02:54]}  d5 {[%clk 0:02:57]} 4. Nf3 {[%clk 0:02:53]}  e6 {[%clk 0:02:51]} 5. e3 {[%clk 0:02:46]}  Nbd7 {[%clk 0:02:51]} 6. Qc2 {[%clk 0:02:46]}  Bd6 {[%clk 0:02:50]} 7. g4 {[%clk 0:02:46]}  h6 {[%clk 0:02:50]} 8. Rg1 {[%clk 0:02:45]}  e5 {[%clk 0:02:32]} 9. cxd5 {[%clk 0:02:44]}  cxd5 {[%clk 0:02:33]} 10. g5 {[%clk 0:02:43]}  hxg5 {[%clk 0:02:27]} 11. Rxg5 {[%clk 0:02:40]}  e4 {[%clk 0:01:55]} 12. Ne5 {[%clk 0:02:31]}  Nxe5 {[%clk 0:01:50]} 13. dxe5 {[%clk 0:02:25]}  Nd7 {[%clk 0:01:49]} 14. Rxg7 {[%clk 0:02:07]}  Nxe5 {[%clk 0:01:39]} 15. Nxd5 {[%clk 0:02:05]}  Nf3+ {[%clk 0:01:35]} 16. Kd1 {[%clk 0:02:01]}  Be6 {[%clk 0:00:46]} 17. Qxe4 {[%clk 0:01:59]}  Be5 {[%clk 0:00:35]} 18. Rh7 {[%clk 0:01:35]}  Rxh7 {[%clk 0:00:34]} 19. Qxh7 {[%clk 0:01:35]}  Qxd5+ {[%clk 0:00:34]} 20. Ke2 {[%clk 0:01:35]}  O-O-O {[%clk 0:00:19]} 21. Qc2+ {[%clk 0:01:34]}  Kb8 {[%clk 0:00:19]} 22. Bg2 {[%clk 0:01:33]}  Ng1+ {[%clk 0:00:18]} 23. Kf1 {[%clk 0:01:33]}  Qd1+ {[%clk 0:00:19]} 0-1


[Site "https://www.chess.com"]

[Event "Titled Tuesday Blitz February 15 Early 2022"]
[White "Tsyhanchuk, Stanislav"]
[Black "Goldin, Roman"]
[WhiteFideId "13505130"]
[BlackFideId "2803860"]
[WhiteElo "2078"]
[BlackElo "2312"]
[Result "1/2-1/2"]
[Round "07"]
[TimeControl "180+1"]
[Date "2022.02.15"]
[WhiteClock "0:00:11"]
[BlackClock "0:00:19"]

1. e4 {[%clk 0:03:00]}  Nc6 {[%clk 0:02:57]} 2. Nc3 {[%clk 0:02:59]}  Nf6 {[%clk 0:02:56]} 3. Bc4 {[%clk 0:02:56]}  Nxe4 {[%clk 0:02:55]} 4. Bxf7+ {[%clk 0:02:49]}  Kxf7 {[%clk 0:02:55]} 5. Nxe4 {[%clk 0:02:49]}  e5 {[%clk 0:02:49]} 6. Nf3 {[%clk 0:02:48]}  d5 {[%clk 0:02:39]} 7. Neg5+ {[%clk 0:02:48]}  Kg8 {[%clk 0:02:38]} 8. d3 {[%clk 0:02:30]}  h6 {[%clk 0:02:38]} 9. Nh3 {[%clk 0:02:29]}  Bxh3 {[%clk 0:02:38]} 10. gxh3 {[%clk 0:02:30]}  Qf6 {[%clk 0:02:36]} 11. Rg1 {[%clk 0:02:01]}  Bc5 {[%clk 0:02:29]} 12. Be3 {[%clk 0:01:47]}  Bxe3 {[%clk 0:02:23]} 13. fxe3 {[%clk 0:01:46]}  Kh7 {[%clk 0:02:23]} 14. Nd2 {[%clk 0:01:29]}  Rhf8 {[%clk 0:02:09]} 15. Qe2 {[%clk 0:01:27]}  e4 {[%clk 0:01:55]} 16. d4 {[%clk 0:01:24]}  Nb4 {[%clk 0:01:51]} 17. O-O-O {[%clk 0:01:14]}  Nxa2+ {[%clk 0:01:39]} 18. Kb1 {[%clk 0:01:14]}  Nb4 {[%clk 0:01:36]} 19. Qg4 {[%clk 0:01:06]}  Rf7 {[%clk 0:01:11]} 20. Rdf1 {[%clk 0:00:41]}  Qe7 {[%clk 0:01:00]} 21. Qg6+ {[%clk 0:00:39]}  Kg8 {[%clk 0:01:01]} 22. Rxf7 {[%clk 0:00:23]}  Qxf7 {[%clk 0:01:00]} 23. Qxh6 {[%clk 0:00:23]}  Rf8 {[%clk 0:00:57]} 24. Qg5 {[%clk 0:00:23]}  c6 {[%clk 0:00:54]} 25. b3 {[%clk 0:00:23]}  a5 {[%clk 0:00:52]} 26. h4 {[%clk 0:00:22]}  Qf6 {[%clk 0:00:48]} 27. Qg4 {[%clk 0:00:21]}  Rf7 {[%clk 0:00:46]} 28. h5 {[%clk 0:00:20]}  Qf2 {[%clk 0:00:46]} 29. h6 {[%clk 0:00:17]}  Qxd2 {[%clk 0:00:42]} 30. h7+ {[%clk 0:00:11]}  Kxh7 {[%clk 0:00:28]} 31. Qh3+ {[%clk 0:00:11]}  Kg8 {[%clk 0:00:28]} 32. Qc8+ {[%clk 0:00:11]}  Rf8 {[%clk 0:00:26]} 33. Qe6+ {[%clk 0:00:11]}  Rf7 {[%clk 0:00:21]} 34. Qc8+ {[%clk 0:00:11]}  Kh7 {[%clk 0:00:19]} 35. Qh3+ {[%clk 0:00:11]}  Kg8 {[%clk 0:00:19]} 36. Qc8+ {[%clk 0:00:11]} 1/2-1/2


[Site "https://www.chess.com"]

[Event "Titled Tuesday Blitz February 15 Early 2022"]
[White "Vetokhin, Ilia"]
[Black "Deuer, Marius"]
[WhiteFideId "24156078"]
[BlackFideId "16236432"]
[WhiteElo "1897"]
[BlackElo "2091"]
[Result "1-0"]
[Round "07"]
[TimeControl "180+1"]
[Date "2022.02.15"]
[WhiteClock "0:00:09"]
[BlackClock "0:00:01"]

1. d4 {[%clk 0:03:00]}  e6 {[%clk 0:03:00]} 2. c4 {[%clk 0:03:00]}  Nf6 {[%clk 0:02:58]} 3. g3 {[%clk 0:03:00]}  c5 {[%clk 0:02:59]} 4. Nf3 {[%clk 0:03:00]}  cxd4 {[%clk 0:02:57]} 5. Nxd4 {[%clk 0:03:01]}  Nc6 {[%clk 0:02:56]} 6. Bg2 {[%clk 0:03:00]}  Bb4+ {[%clk 0:02:56]} 7. Bd2 {[%clk 0:02:51]}  Qa5 {[%clk 0:02:51]} 8. Nb3 {[%clk 0:02:46]}  Bxd2+ {[%clk 0:02:44]} 9. N1xd2 {[%clk 0:02:46]}  Qc7 {[%clk 0:02:44]} 10. O-O {[%clk 0:02:45]}  O-O {[%clk 0:02:44]} 11. Rc1 {[%clk 0:02:45]}  d6 {[%clk 0:01:53]} 12. c5 {[%clk 0:02:32]}  d5 {[%clk 0:01:46]} 13. e4 {[%clk 0:02:31]}  dxe4 {[%clk 0:01:42]} 14. Nxe4 {[%clk 0:02:32]}  Nxe4 {[%clk 0:01:42]} 15. Bxe4 {[%clk 0:02:32]}  Rd8 {[%clk 0:01:43]} 16. Qh5 {[%clk 0:02:18]}  g6 {[%clk 0:01:14]} 17. Qg5 {[%clk 0:02:18]}  Bd7 {[%clk 0:01:14]} 18. h4 {[%clk 0:02:01]}  Rab8 {[%clk 0:01:10]} 19. f4 {[%clk 0:01:42]}  Be8 {[%clk 0:00:43]} 20. h5 {[%clk 0:01:08]}  Qe7 {[%clk 0:00:39]} 21. Qg4 {[%clk 0:01:05]}  f5 {[%clk 0:00:37]} 22. Qf3 {[%clk 0:00:54]}  fxe4 {[%clk 0:00:21]} 23. Qxe4 {[%clk 0:00:55]}  gxh5 {[%clk 0:00:20]} 24. Rce1 {[%clk 0:00:47]}  Bg6 {[%clk 0:00:18]} 25. Qf3 {[%clk 0:00:45]}  Rd3 {[%clk 0:00:18]} 26. Qf2 {[%clk 0:00:41]}  Rbd8 {[%clk 0:00:18]} 27. Kh2 {[%clk 0:00:31]}  h4 {[%clk 0:00:18]} 28. gxh4 {[%clk 0:00:30]}  Bf5 {[%clk 0:00:18]} 29. Rg1+ {[%clk 0:00:30]}  Kh8 {[%clk 0:00:18]} 30. Rg3 {[%clk 0:00:30]}  Rxg3 {[%clk 0:00:17]} 31. Qxg3 {[%clk 0:00:31]}  Rd3 {[%clk 0:00:16]} 32. Qg5 {[%clk 0:00:24]}  Qxg5 {[%clk 0:00:15]} 33. hxg5 {[%clk 0:00:25]}  Kg7 {[%clk 0:00:15]} 34. Kg2 {[%clk 0:00:24]}  h6 {[%clk 0:00:14]} 35. gxh6+ {[%clk 0:00:22]}  Kxh6 {[%clk 0:00:15]} 36. Re2 {[%clk 0:00:22]}  Nd4 {[%clk 0:00:15]} 37. Nxd4 {[%clk 0:00:14]}  Rxd4 {[%clk 0:00:16]} 38. Kg3 {[%clk 0:00:13]}  Kg6 {[%clk 0:00:17]} 39. Re3 {[%clk 0:00:13]}  Kf6 {[%clk 0:00:17]} 40. Rb3 {[%clk 0:00:13]}  Rd7 {[%clk 0:00:17]} 41. a3 {[%clk 0:00:12]}  Rc7 {[%clk 0:00:18]} 42. Rc3 {[%clk 0:00:12]}  Be4 {[%clk 0:00:18]} 43. Kf2 {[%clk 0:00:12]}  Kf5 {[%clk 0:00:17]} 44. Ke3 {[%clk 0:00:12]}  Bd5 {[%clk 0:00:18]} 45. b4 {[%clk 0:00:12]}  Rh7 {[%clk 0:00:18]} 46. Kd4 {[%clk 0:00:10]}  Kxf4 {[%clk 0:00:18]} 47. b5 {[%clk 0:00:11]}  Rh1 {[%clk 0:00:17]} 48. c6 {[%clk 0:00:11]}  Rd1+ {[%clk 0:00:17]} 49. Kc5 {[%clk 0:00:11]}  bxc6 {[%clk 0:00:11]} 50. bxc6 {[%clk 0:00:12]}  Rh1 {[%clk 0:00:10]} 51. c7 {[%clk 0:00:11]}  Rh8 {[%clk 0:00:09]} 52. Kd6 {[%clk 0:00:12]}  Bb7 {[%clk 0:00:07]} 53. Kxe6 {[%clk 0:00:12]}  Ke4 {[%clk 0:00:06]} 54. Kd7 {[%clk 0:00:11]}  Bc8+ {[%clk 0:00:07]} 55. Kd6 {[%clk 0:00:12]}  Kd4 {[%clk 0:00:07]} 56. Rg3 {[%clk 0:00:11]}  Rh6+ {[%clk 0:00:07]} 57. Ke7 {[%clk 0:00:12]}  Kc5 {[%clk 0:00:07]} 58. Rg8 {[%clk 0:00:10]}  Rh7+ {[%clk 0:00:04]} 59. Kd8 {[%clk 0:00:11]}  Ba6 {[%clk 0:00:03]} 60. Rg5+ {[%clk 0:00:09]}  Kb6 {[%clk 0:00:02]} 61. Rg6+ {[%clk 0:00:09]}  Ka5 {[%clk 0:00:01]} 62. Rxa6+ {[%clk 0:00:09]} 1-0


[Site "https://www.chess.com"]

[Event "Titled Tuesday Blitz February 15 Early 2022"]
[White "Vine, Elzbieta"]
[Black "Singh, Ojasva"]
[WhiteFideId "1119320"]
[BlackFideId "25681958"]
[WhiteElo "1845"]
[BlackElo "1741"]
[Result "0-1"]
[Round "07"]
[TimeControl "180+1"]
[Date "2022.02.15"]
[WhiteClock "0:00:15"]
[BlackClock "0:02:35"]

1. e4 {[%clk 0:03:00]}  e5 {[%clk 0:02:59]} 2. Nf3 {[%clk 0:02:59]}  d6 {[%clk 0:03:00]} 3. Nc3 {[%clk 0:02:55]}  Nf6 {[%clk 0:02:59]} 4. Bc4 {[%clk 0:02:44]}  Be7 {[%clk 0:02:59]} 5. O-O {[%clk 0:02:43]}  O-O {[%clk 0:02:59]} 6. d4 {[%clk 0:02:41]}  exd4 {[%clk 0:02:58]} 7. Nxd4 {[%clk 0:02:40]}  Nc6 {[%clk 0:02:59]} 8. Nf5 {[%clk 0:02:27]}  Bxf5 {[%clk 0:02:57]} 9. exf5 {[%clk 0:02:26]}  Ne5 {[%clk 0:02:57]} 10. Bb3 {[%clk 0:02:19]}  c6 {[%clk 0:02:54]} 11. f4 {[%clk 0:02:16]}  Neg4 {[%clk 0:02:54]} 12. Ne4 {[%clk 0:01:44]}  Nxe4 {[%clk 0:02:50]} 13. Qxg4 {[%clk 0:01:43]}  Qb6+ {[%clk 0:02:50]} 14. Kh1 {[%clk 0:01:38]}  Nf2+ {[%clk 0:02:50]} 15. Rxf2 {[%clk 0:01:36]}  Qxf2 {[%clk 0:02:51]} 16. Qd1 {[%clk 0:01:27]}  Bf6 {[%clk 0:02:46]} 17. c3 {[%clk 0:01:25]}  Rfe8 {[%clk 0:02:44]} 18. Bd2 {[%clk 0:01:15]}  Re2 {[%clk 0:02:44]} 19. Bxf7+ {[%clk 0:00:38]}  Kxf7 {[%clk 0:02:40]} 20. Qb3+ {[%clk 0:00:37]}  Kf8 {[%clk 0:02:37]} 21. Rg1 {[%clk 0:00:33]}  Rxd2 {[%clk 0:02:36]} 22. Qxb7 {[%clk 0:00:31]}  Re8 {[%clk 0:02:35]} 23. Qxc6 {[%clk 0:00:27]}  Qxg1+ {[%clk 0:02:35]} 24. Kxg1 {[%clk 0:00:15]}  Re1# {[%clk 0:02:35]} 0-1


[Site "https://www.chess.com"]